Cogmind - Beta 11 X8 @@@ ROGUE MODE // 2021.12.13 @ 12:32:28 Player: btmk16 Result: Self-destructed Performance ------------- Evolutions (5) 2500 Regions Visited (6) 1200 Robots Destroyed (212) 1060 Value Destroyed (7798) 7798 Prototype IDs (15) 300 Alien Tech Used (0) 0 Bonus (2702) 2702 TOTAL SCORE: 15560 Bonus ------- High Alert Combat Kills 2665 Follower Combat Kills 37 Cogmind --------- Core Integrity 181/1000 Matter 28/300 Energy 99/300 System Corruption 6% Temperature Cool (0) Movement Core (700) Ox13 Location -5/Factory Parts ------- > --- POWER (1) -------- (None) > --- PROPULSION (5) --- (None) > --- UTILITY (7) ------ Experimental Heat Sink High-capacity Storage Unit Compact Battery Machine Analyzer Weapon Cycler > --- WEAPON (4) ------- (None) > --- INVENTORY (20) --- Cooled Cesium-ion Thruster Cooled Cesium-ion Thruster Cooled Cesium-ion Thruster Improved Heat Sink High-capacity Battery (250) Improved Terrain Scanner Advanced Terrain Scanner Transmission Jammer Phase Shifter Remote Force Field Wave Gun Long-range Missile Launcher Power Sword Peak State ------------ > --- POWER ------------ Enhanced Nuclear Core > --- PROPULSION ------- Improved Medium Treads Wheel Armored Huge Wheel Cooled Cesium-ion Thruster > --- UTILITY ---------- Improved Heat Sink Advanced Heat Sink High-capacity Storage Unit Machine Analyzer Advanced Terrain Scanner Heavy Insulated Plating > --- WEAPON ----------- Heavy Laser Wave Gun Autogun Autogun > --- INVENTORY -------- Improved Deuterium Engine Compact Wheel Improved Heat Sink Improved Heat Sink High-capacity Battery Improved Terrain Scanner Weapon Cycler Transmission Jammer Phase Shifter Remote Force Field Authchip [R/Combat] Authchip [Device] High-powered Tractor Beam Electrolaser Wave Gun Mini Assault Cannon Antimatter Cannon Heavy Rocket Launcher Long-range Missile Launcher Power Sword [Rating: 73] Favorites ----------- Power Heavy Ion Engine Engine Heavy Ion Engine Power Core Enhanced Nuclear Core Propulsion Compact Wheel Treads Light Treads Leg Improved Carbon-fiber Leg Wheel Compact Wheel Hover Unit Cooled Airjet Flight Unit Cooled Cesium-ion Thruster Utility Improved Heat Sink Device Improved Heat Sink Storage Large Storage Unit Processor Machine Analyzer Hackware Hacking Suite Protection Hardened Heavy Armor Plating Weapon Gauss Rifle Energy Gun Advanced Beam Rifle Energy Cannon Heavy Particle Cannon Ballistic Gun Gauss Rifle Ballistic Cannon Mini Assault Cannon Launcher Rocket Launcher Impact Weapon Impact Mace Piercing Weapon Spear Build | -11 -10 -9 -8 -7 -6 -5 ------- Run | Scr Mat Mat Mat Fac Fac Fac Slots Evolved 10 | . . 2 2 2 2 2 Power . | . . . . . . . Propulsion 3 | . . . 1 1 . 1 Utility 5 | . . . 1 1 2 1 Weapon 2 | . . 2 . . . . Parts Attached 233 | . 19 27 39 90 15 43 Power 16 | . 2 3 2 7 . 2 Engine 14 | . 2 3 2 6 . 1 Core 2 | . . . . 1 . 1 Reactor . | . . . . . . . Propulsion 59 | . 3 4 11 23 3 15 Treads 15 | . . 3 4 4 2 2 Leg 2 | . 1 . . 1 . . Wheel 38 | . 2 1 7 16 1 11 Hover 3 | . . . . 2 . 1 Flight 1 | . . . . . . 1 Utility 57 | . 5 4 7 24 6 11 Device 36 | . 2 4 4 15 2 9 Storage 8 | . 3 . . 2 2 1 Processor 3 | . . . . 2 1 . Hackware 2 | . . . . 2 . . Protection 8 | . . . 3 3 1 1 Artifact . | . . . . . . . Weapon 101 | . 9 16 19 36 6 15 Energy Gun 39 | . 2 8 7 9 4 9 Energy Cannon 1 | . . . 1 . . . Ballistic Gun 41 | . 4 6 10 18 1 2 Ballistic Cannon 4 | . . . . 1 . 3 Launcher 13 | . 3 2 1 5 1 1 Special Weapon . | . . . . . . . Impact Weapon 2 | . . . . 2 . . Slashing Weapon . | . . . . . . . Piercing Weapon 1 | . . . . 1 . . Special Melee Weapon . | . . . . . . . Unidentified Prototypes 14 | . . 4 2 4 . 4 Corrupted Parts 1 | . . . . 1 . . System Corruption 8 | . . . . 8 . . Parts Lost 94 | . 2 2 21 31 5 33 Power 8 | . . . 2 4 . 2 Propulsion 30 | . . 1 7 10 1 11 Utility 22 | . 1 1 5 8 1 6 Weapon 34 | . 1 . 7 9 3 14 Highest Loss Streak 16 | . 1 1 14 8 5 16 Average Slot Usage (%) 90 | . 95 98 93 88 85 76 Engine 7 | . 14 11 8 6 6 2 Treads 6 | . . 3 12 4 11 7 Wheel 16 | . 26 18 12 17 7 11 Device 10 | . 6 10 8 11 6 13 Storage 9 | . 18 11 9 7 11 6 Processor 2 | . . . . 3 6 6 Protection 2 | . . . 6 2 7 2 Energy Gun 13 | . 4 22 11 12 11 8 Ballistic Gun 16 | . 21 19 21 15 13 7 Naked Turns . | . . . . . . . Heaviest Build 95 | 10 34 41 52 81 95 95 Greatest Support 60 | 20 32 32 40 60 44 48 Greatest Overweight (x) 21 | . 3 2 11 21 3 17 Average Overweight (x) 1 | . . 1 2 1 2 1 Largest Inventory Capacity 20 | . 15 15 15 20 20 20 Average Capacity 16 | . 12 15 15 17 20 20 Most Carried 20 | . 15 15 15 20 20 20 Average Carried 15 | . 11 14 13 17 18 17 Final Capacity 20 | 8 15 15 15 20 20 20 Final Carried 20 | 6 15 15 15 20 20 13 Class Distribution -------------------- 21% | Scavenger-Tank 20% | Gunner 18% | Scavenger-Skirmisher 13% | Mutant 12% | Tank 5% | Scavenger-Gunner 3% | Scavenger-Mutant Dominant Class ---------------- Mutant | -10/Materials Gunner | -9/Materials Scavenger-Tank | -8/Materials Scavenger-Skirmisher | -7/Factory Scavenger-Tank | -6/Factory Scavenger-Skirmisher | -5/Factory Resources | -11 -10 -9 -8 -7 -6 -5 ----------- Run | Scr Mat Mat Mat Fac Fac Fac Matter Collected 5322 | 185 269 683 957 2136 342 750 Remotely . | . . . . . . . Salvage Created 8807 | . 487 1342 1677 3649 653 999 Parts 460 | . 31 89 89 207 16 28 Haulers Intercepted 11 | . 2 5 2 1 1 . Recyclers Shooed 3 | . . . . 1 . 2 Parts Field Recycled . | . . . . . . . Retrieved Matter . | . . . . . . . Parts Self-Destructed . | . . . . . . . Prevented . | . . . . . . . Kills | -11 -10 -9 -8 -7 -6 -5 ------- Run | Scr Mat Mat Mat Fac Fac Fac Combat Hostiles Destroyed 179 | . 10 28 33 79 12 17 Guns 129 | . 5 23 21 63 8 9 Cannons 9 | . . . 3 1 . 5 AOE 39 | . 5 5 8 15 4 2 Classes Destroyed 17 | . 3 4 5 5 . . Worker 8 | . . . 2 4 . 2 Builder 14 | . 1 1 2 9 1 . Hauler 11 | . 2 5 2 1 1 . Recycler 5 | . . . 1 1 1 2 Mechanic 1 | . . . . 1 . . Operator 4 | . . . 3 1 . . Watcher 1 | . . 1 . . . . Swarmer 26 | . . 6 4 10 3 3 Grunt 89 | . 10 12 19 35 8 5 Brawler 4 | . . . 2 1 . 1 Duelist 5 | . . 1 . 3 . 1 Protector 6 | . . . . 5 . 1 Sentry 22 | . . 9 5 5 . 3 Specialist 1 | . . . . 1 . . Hunter 9 | . . . 3 5 . 1 Programmer 16 | . . . . 13 1 2 Heavy 1 | . . . . 1 . . Best Kill Streak 12 | . 4 7 9 12 8 6 Combat Bots Only 10 | . 3 6 8 10 6 6 Max Kills in Single Turn 4 | . 3 2 3 4 2 2 Gunslinging 2 | . . 1 2 1 1 . Exploded 3 | . 3 2 3 3 2 1 Melee . | . . . . . . . Uniques/NPCs Destroyed . | . . . . . . . Combat | -11 -10 -9 -8 -7 -6 -5 -------- Run | Scr Mat Mat Mat Fac Fac Fac Damage Taken 13622 | . 244 603 2706 4381 932 4756 Core 1871 | . 65 159 301 432 95 819 Absorbed by Shields 43 | . . . . 43 . . Core Remaining (%) 67 | 100 74 60 45 38 88 . Volleys Fired 448 | . 31 60 80 154 25 98 Largest 4 | . 2 4 4 4 4 4 Hottest 239 | . 73 206 187 188 190 239 Shots Fired 1380 | . 59 201 276 542 80 222 Gun 1251 | . 55 193 251 521 76 155 Cannon 84 | . . . 20 1 . 63 Launcher 45 | . 4 8 5 20 4 4 Special . | . . . . . . . Kinetic 795 | . 52 89 180 300 49 125 Thermal 514 | . 3 104 91 211 27 78 Explosive 45 | . 4 8 5 20 4 4 Electromagnetic 26 | . . . . 11 . 15 Robot Hit Streak 18 | . 8 11 16 18 9 17 Robot Miss Streak 10 | . 2 6 6 10 4 4 Penetration Max 1 | . . . 1 1 . . Secondary Targets 19 | . 1 2 6 7 2 1 Max Gunslinging Chain 2 | . 1 1 2 1 1 1 Shots Hit Robots 886 | . 41 122 169 335 52 167 Core Hits 504 | . 22 61 74 241 40 66 Critical Kills 5 | . . 2 . 3 . . Critical Parts Destroyed 8 | . 1 3 1 3 . . Critical Strikes 45 | . 1 14 4 18 1 7 Burn 28 | . . 9 3 12 1 3 Destroy 13 | . 1 5 1 6 . . Blast 3 | . . . . . . 3 Corrupt 1 | . . . . . . 1 Melee Attacks 9 | . . . . 9 . . Impact 7 | . . . . 7 . . Slashing . | . . . . . . . Piercing 2 | . . . . 2 . . Sneak Attacks . | . . . . . . . Combat Hostiles . | . . . . . . . Follow-up Attacks . | . . . . . . . Damage Inflicted 21919 | . 680 2347 3932 9222 1957 3781 Guns 14567 | . 316 1811 2680 6517 972 2271 Cannons 1561 | . . . 379 28 . 1154 Explosions 5679 | . 364 536 873 2565 985 356 Melee 112 | . . . . 112 . . Ramming . | . . . . . . . Kinetic 9298 | . 292 734 1942 3692 624 2014 Thermal 6543 | . 24 1077 1117 2712 348 1265 Explosive 5679 | . 364 536 873 2565 985 356 Electromagnetic 287 | . . . . 141 . 146 Impact 112 | . . . . 112 . . Slashing . | . . . . . . . Piercing . | . . . . . . . Highest Corruption 17 | . 2 . . 17 . 6 Average Corruption 4 | . 2 . . 5 . 2 Corruption Purged . | . . . . . . . Effects 82 | . 4 . . 67 . 11 Message Errors 19 | . . . . 15 . 4 Matter Fused 14 | . . . . 13 . 1 Heat Flow Errors 12 | . . . . 11 . 1 Energy Discharges 10 | . 3 . . 6 . 1 Data Loss (minor) 11 | . 1 . . 8 . 2 Data Loss (major) 3 | . . . . 2 . 1 Misfires 4 | . . . . 3 . 1 Misdirections 2 | . . . . 2 . . Weapon Failures 7 | . . . . 7 . . Overload Shots . | . . . . . . . Overflow Damage 205 | . . 66 41 56 22 20 Projectiles 23 | . . . 3 . . 20 Explosions 180 | . . 66 38 54 22 . Melee 2 | . . . . 2 . . Knockbacks 19 | . . . . . . 19 Impact . | . . . . . . . Kinetic 17 | . . . . . . 17 Secondary 2 | . . . . . . 2 Self-Inflicted Damage 332 | . . . . 86 45 201 Shots 9 | . . . . 3 2 4 Rammed . | . . . . . . . Targets Rammed . | . . . . . . . Kicked . | . . . . . . . Crushed . | . . . . . . . Highest Temperature 385 | . 24 340 308 351 257 385 Average Temperature 80 | . 10 71 92 71 94 100 Received Heat Transfer 3499 | . 138 207 1017 907 450 780 Effects 2 | . . . . . . 2 Shutdowns 1 | . . . . . . 1 Interference 1 | . . . . . . 1 Siege Activations . | . . . . . . . Robots Corrupted . | . . . . . . . Combat Hostiles . | . . . . . . . Parts Fried . | . . . . . . . Impact Corruptions 1 | . . . . 1 . . Robots Melted 2 | . . . 1 . . 1 Combat Hostiles 2 | . . . 1 . . 1 Parts Melted 28 | . . 5 . 11 3 9 Heat Transferred 14663 | . 50 3145 2405 5676 777 2610 Parts Sabotaged . | . . . . . . . Parts Stolen . | . . . . . . . Parts Stripped . | . . . . . . . Power Chain Reactions . | . . . . . . . Missiles Intercepted . | . . . . . . . Alert | -11 -10 -9 -8 -7 -6 -5 ------- Run | Scr Mat Mat Mat Fac Fac Fac Peak Influence 1556 | . 174 573 938 1556 962 494 Initial 762 | . . 73 241 411 762 395 Average 586 | . 82 368 702 790 804 383 Maximum Alert Level 4 | . . 2 3 4 3 2 Low Security (%) 11 | . 100 8 . 2 . . Level 1 27 | . . 52 20 19 . 59 Level 2 23 | . . 38 14 24 8 40 Level 3 26 | . . . 64 23 91 . Level 4 10 | . . . . 29 . . Level 5 . | . . . . . . . High Security . | . . . . . . . Max Security . | . . . . . . . Squads Dispatched 53 | . . 2 10 28 7 6 Investigation 11 | . . 2 2 5 2 . Extermination 8 | . . . . 6 1 1 Reinforcement 13 | . . . 5 6 1 1 Assault 7 | . . . . 6 . 1 Garrison 14 | . . . 3 5 3 3 Intercept . | . . . . . . . Construction Impeded 4 | . . . 1 2 . 1 Haulers Reinforced . | . . . . . . . Active Scanning Responses . | . . . . . . . Cargo Convoy Interrupts 1 | . . . . 1 . . Stealth | -11 -10 -9 -8 -7 -6 -5 --------- Run | Scr Mat Mat Mat Fac Fac Fac Distress Signals 16 | . . 3 6 6 1 . Communications Jammed . | . . . . . . . Distress Signals . | . . . . . . . Times Spotted 261 | . 14 41 53 109 16 28 Peak Tracking Total 13 | . 5 4 13 9 8 8 Tactical Retreats 15 | . 1 2 3 5 1 3 Traps | -11 -10 -9 -8 -7 -6 -5 ------- Run | Scr Mat Mat Mat Fac Fac Fac Traps Triggered 15 | . 3 4 1 6 . 1 Indirectly . | . . . . . . . Trap Hack Attempts . | . . . . . . . Triggered . | . . . . . . . Disarmed . | . . . . . . . Reprogrammed . | . . . . . . . Reused . | . . . . . . . Traps Extracted . | . . . . . . . Installed . | . . . . . . . Triggered 8 | . . . . 8 . . Machines | -11 -10 -9 -8 -7 -6 -5 ---------- Run | Scr Mat Mat Mat Fac Fac Fac Machines Disabled 15 | . 1 1 7 3 1 2 Max in Single Turn 1 | . 1 1 1 1 1 1 Garrison Access 2 | . . . 1 1 . . Machines Sabotaged . | . . . . . . . Garrisons Compromised 1 | . . . . 1 . . Overloaded Fab Kills . | . . . . . . . Hacking | -11 -10 -9 -8 -7 -6 -5 --------- Run | Scr Mat Mat Mat Fac Fac Fac Machines Accessed 36 | . 5 6 3 15 4 3 Terminals 28 | . 5 6 2 10 3 2 Fabricators 5 | . . . . 4 1 . Repair Stations . | . . . . . . . Recycling Units . | . . . . . . . Scanalyzers . | . . . . . . . Garrison Access 3 | . . . 1 1 . 1 Total Hacks 98 | . 11 19 9 41 12 6 Successful 35 | . 6 8 3 14 3 1 Failed 62 | . 4 11 6 27 9 5 Catastrophic 14 | . 2 2 1 4 2 3 Database Lockouts 1 | . 1 . . . . . Manual 47 | . 7 10 7 13 6 4 Terminals 80 | . 11 19 7 29 10 4 Fabricators 11 | . . . . 9 2 . Repair Stations . | . . . . . . . Recycling Units . | . . . . . . . Scanalyzers . | . . . . . . . Garrison Access 7 | . . . 2 3 . 2 Terminal Hacks 23 | . 6 7 . 8 2 . Part Schematic 3 | . . 1 . 2 . . Robot Schematic 1 | . . . . 1 . . Robot Analysis 8 | . 3 4 . 1 . . Terminal Index 1 | . . . . 1 . . Alert Level 5 | . 1 2 . 1 1 . Unreport Threat 3 | . . . . 2 1 . Transport Status 1 | . 1 . . . . . Zone Layout 1 | . 1 . . . . . Fabricator Hacks 5 | . . . . 4 1 . Network Status 2 | . . . . 1 1 . Load Schematic 2 | . . . . 2 . . Build 1 | . . . . 1 . . Repair Station Hacks . | . . . . . . . Recycling Unit Hacks . | . . . . . . . Scanalyzer . | . . . . . . . Garrison Access Hacks 1 | . . . 1 . . . Seal Access 1 | . . . 1 . . . Unauthorized Hacks 6 | . . 1 2 2 . 1 Terminals 5 | . . 1 2 1 . 1 Track 1 | . . . 1 . . . Botnet 4 | . . 1 1 1 . 1 Fabricators 1 | . . . . 1 . . Fabnet 1 | . . . . 1 . . Repair Stations . | . . . . . . . Recycling Units . | . . . . . . . Scanalyzers . | . . . . . . . Garrison Access . | . . . . . . . Data Cores Recovered . | . . . . . . . Used . | . . . . . . . Hacking Detections 31 | . 3 5 2 14 4 3 Full Trace Events 8 | . . . 1 5 2 . Feedback Events . | . . . . . . . Feedback Blocked . | . . . . . . . Robot Schematics Acquired 1 | . . . . 1 . . Robots Built . | . . . . . . . Authchips . | . . . . . . . Time . | . . . . . . . Total Robot Build Rating . | . . . . . . . Part Schematics Acquired 3 | . . 1 . 2 . . Parts Built 1 | . . . . 1 . . Authchips . | . . . . . . . Time 169 | . . . . 169 . . Total Part Build Rating 6 | . . . . 6 . . Parts Repaired . | . . . . . . . Time . | . . . . . . . Parts Recycled . | . . . . . . . Recycled Matter . | . . . . . . . Retrieved Matter . | . . . . . . . Retrieved Components . | . . . . . . . Parts Scanalyzed . | . . . . . . . Part Schematics Acquired . | . . . . . . . Parts Damaged . | . . . . . . . Bothacking | -11 -10 -9 -8 -7 -6 -5 ------------ Run | Scr Mat Mat Mat Fac Fac Fac Used RIF Installer . | . . . . . . . Robots Hacked 1 | . . . . . 1 . Non-combat . | . . . . . . . Combat 1 | . . . . . 1 . Robot Hacks Applied . | . . . . . . . Relay Couplers Released 1 | . . . . 1 . . Machine Destruction 1 | . . . . 1 . . Fabnet Peak Effective % 3 | . . . . . 3 1 Autooverrided 1 | . . . . . 1 . Robots Rewired . | . . . . . . . Allies Hacked . | . . . . . . . Hacks Repelled . | . . . . . . . Allies | -11 -10 -9 -8 -7 -6 -5 -------- Run | Scr Mat Mat Mat Fac Fac Fac Total Allies 1 | . . . . . 1 . Largest Group 1 | . . . . . 1 . Highest-Rated Group 29 | . . . . . 29 . Highest-Rated Ally 29 | . . . . . 29 . Total Orders . | . . . . . . . Ally Attacks 4 | . . . . . 4 . Total Damage 79 | . . . . . 79 . Kills 1 | . . . . . 1 . Allies Corrupted . | . . . . . . . Allies Melted . | . . . . . . . Intel | -11 -10 -9 -8 -7 -6 -5 ------- Run | Scr Mat Mat Mat Fac Fac Fac Robot Analysis Total 8 | . 3 4 . 1 . . Derelict Logs Recovered . | . . . . . . . Drone Launches . | . . . . . . . Drone Recoveries . | . . . . . . . Exploration | -11 -10 -9 -8 -7 -6 -5 ------------- Run | Scr Mat Mat Mat Fac Fac Fac Turns Passed 8142 | . 730 1562 1182 2985 718 965 Spaces Moved 4983 | 1 568 833 674 2008 393 506 Core 4 | . 1 . 1 1 . 1 Treads 161 | . . 152 9 . . . Legs 37 | 1 36 . . . . . Wheels 4781 | . 531 681 664 2007 393 505 Hover . | . . . . . . . Flight . | . . . . . . . Fastest Speed 100 | 120 100 100 105 101 130 100 Average Speed 120 | 120 102 139 121 110 142 125 Slowest Speed 1100 | 120 200 240 600 1100 145 900 Overloaded Moves . | . . . . . . . Propulsion Burnouts . | . . . . . . . Robots Hopped . | . . . . . . . Cave-ins Triggered . | . . . . . . . Exploration Rate (%) 36 | 2 80 70 34 51 10 10 Regions Visited 6 Branch Regions . Pre-discovered Areas . | . . . . . . . Known Exits Taken 1 | . . . . . 1 . Unknown Exits Taken 5 | 1 1 1 1 1 . . Scrap Searched . | . . . . . . . Spaces Dug 5 | . . . . 5 . . Terrain Destroyed 314 | . 38 35 21 127 30 63 Melee 5 | . . . . 5 . . Projectile 20 | . . . 7 1 2 10 AOE 288 | . 38 35 14 120 28 53 Terrain Rammed . | . . . . . . . Walls Destroyed . | . . . . . . . Machines Disabled . | . . . . . . . Actions | -11 -10 -9 -8 -7 -6 -5 --------- Run | Scr Mat Mat Mat Fac Fac Fac Total 6244 | . 673 1110 850 2427 498 686 Wait 384 | . 27 149 40 99 51 18 Move 4977 | . 567 832 673 2007 392 506 Hop . | . . . . . . . Pick Up 77 | . 17 15 7 24 7 7 Fast Attach 87 | . 7 15 15 29 3 18 Attach 61 | . 3 1 11 23 6 17 Detach 12 | . 1 1 . 5 1 4 Swap 85 | . 9 11 13 38 6 8 Drop 95 | . 11 26 11 30 7 10 Fire 448 | . 31 60 80 154 25 98 Melee 9 | . . . . 9 . . Ram . | . . . . . . . Kick . | . . . . . . . Crush . | . . . . . . . Escape Stasis 8 | . . . . 8 . . Rewire 1 | . . . . 1 . . Trap . | . . . . . . . Miscellaneous . | . . . . . . . Route ------- -11/Scrapyard -10/Materials (discovered 3 exits: *Mat x2 / [*Min]) -9/Materials (discovered 3 exits: *Mat x2 / [*Min]) -8/Materials -7/Factory -6/Factory -5/Factory History --------- Turn | Location | Event 1 | -11/Scrapyard | Discovered new exit (range 0) 1 | -11/Scrapyard | Entered Materials 66 | -10/Materials | Discovered new exit (range 8) 298 | -10/Materials | Discovered new exit (range 12) 332 | -10/Materials | Build established: Mutant 671 | -10/Materials | Discovered new exit (range 15) 693 | -10/Materials | Central database locked down 731 | -10/Materials | Entered another Materials area 731 | -9/Materials | Evolved 2 slots: Weapon x2 1090 | -9/Materials | Discovered new exit (range 15) 1331 | -9/Materials | Build established: Gunner 1383 | -9/Materials | Discovered new exit (range 14) 1783 | -9/Materials | Discovered new exit (range 16) 2293 | -9/Materials | Entered another Materials area 2293 | -8/Materials | Evolved 2 slots: Propulsion x1, Utility x1 2613 | -8/Materials | Lost 3 parts (2n1u) 2630 | -8/Materials | Build established: Tank 2641 | -8/Materials | Destroyed 8 combat bots 2738 | -8/Materials | Lost 14 parts (1p4n3u6w) 2881 | -8/Materials | Core integrity fell below 50% 2934 | -8/Materials | Build established: Scavenger-Tank 3024 | -8/Materials | Discovered new exit (range 16) 3475 | -8/Materials | Entered Factory 3475 | -7/Factory | Evolved 2 slots: Propulsion x1, Utility x1 4227 | -7/Factory | Build established: Tank 4410 | -7/Factory | Cargo convoy interrupted 4802 | -7/Factory | Destroyed 8 combat bots 4992 | -7/Factory | Garrison activated, responded to threat 5075 | -7/Factory | First assault squad dispatched 5186 | -7/Factory | Destroyed 10 combat bots 5190 | -7/Factory | Lost 8 parts (3n2u3w) 5839 | -7/Factory | Build established: Scavenger-Skirmisher 5938 | -7/Factory | Fabricated Cld. Plasma Rifle? 6098 | -7/Factory | System corruption reached 10% 6165 | -7/Factory | Discovered new exit (range 14) 6228 | -7/Factory | Core integrity fell below 50% 6238 | -7/Factory | Garrison activated, responded to threat 6308 | -7/Factory | Lost 7 parts (1p2n2u2w) 6458 | -7/Factory | Lost 3 parts (1p1n1u) 6460 | -7/Factory | Entered another Factory area 6460 | -6/Factory | Evolved 2 slots: Utility x2 6541 | -6/Factory | Garrison activated, responded to threat 6611 | -6/Factory | Lost 5 parts (1n1u3w) 6729 | -6/Factory | Build established: Scavenger-Tank 6898 | -6/Factory | Discovered new exit (range 16) 7178 | -6/Factory | Identified exit to Factory 7178 | -6/Factory | Entered another Factory area 7178 | -5/Factory | Evolved 2 slots: Propulsion x1, Utility x1 7483 | -5/Factory | Build established: Scavenger-Skirmisher 7633 | -5/Factory | Garrison activated, responded to threat 7702 | -5/Factory | Lost 9 parts (3n2u4w) 7744 | -5/Factory | Found Hvy. Insulated Plating 7778 | -5/Factory | First assault squad dispatched 7946 | -5/Factory | Lost 16 parts (2p4n4u6w) 8101 | -5/Factory | Core integrity fell below 50% 8143 | -5/Factory | Self-destructed Last Messages --------------- 08125_ U-05 Engineer builds a Wall. 08126_ Penetrated by Slug. 08128_ Acquired 32 matter. 08130_ Penetrated by Slug. 08132_ H-66 Slayer knocked back. 08132_ H-66 Slayer Flexi-carbon Leg blasted off. 08133_ U-05 Engineer builds a Wall. 08133_ Penetrated by Slug. 08133_ Com. Wheel destroyed. 08135_ EK=X=KVKHBS4F9XPWK5YTYBM,7Y/FHT5JRPCHT 08136_ Penetrated by Slug. 08136_ Antimatter Cannon destroyed. 08137_ U-05 Engineer lays Concrete. 08139_ U-05 Engineer builds a Wall. 08139_ Penetrated by Slug. 08139_ Mni. Assault Cannon destroyed. 08139_ Penetrated by Slug. 08141_ U-05 Engineer builds a Door. 08142_ U-05 Engineer builds a Wall. 08143_ Slug penetrates R-10 Processor. Map ----- +----------------------------------------------------+ | ?????????????????????????#????????????? | | ????????? ???????????????????????????? | | ?????????? ??????????????????????????? | | ?????????##/#?????????? ########??????? | | ?????????# ???????#???# #??????? | | ?????????# ??????????# #??????? | | ?????????# ??????????# #??????? | | ????????## ?????????# #??????? | | ?????????# ?????????# #??#???? | | ?????????# " ???????## #??????? | | ?????????# " ???????###+#####????#?? | | ?????????# " ???#??#% ##???????? | | ??? ?? ?# " ####### #??????#?? | | ?????? ??# " / #????#???? | | ?????????# " ####### #????????? | | ?????????# " ?????## %% #????#???? | | ?????????# " ?######### ###?#?##?#?? | | ?????????# " """# ! ##%#???### #### | | ?????????# Y"# ## ##??# # # | | ?????????# """# ! ## ##??# | | ????????## ???# ! ## ##??# ### | | "?"""????#####???# ## #?### | | "?"""????????????# ## ### # | | "?"""????????????####+#### ## " | | ?????????#?#??????# ## ### | | "?"""???##??####### %@ # | | "?"""???+ R uu | | "?"""??????######## % % | | ??????? ??????????# hu% ;### | | "?"""?? ???#??????##% #;#?## | | "?"""??????????????## ###### # | | "?"""????????######## ## #+ ## ## | | ????????+ # ! ## | | ????????????############ # !! #? | | ???????? ?????#######"### ##! !! #? | | ????????"?????# ?# ## !! ## | | ??????????"???# # ############# | | ????????"?????# + #?#? | | ??????????????# # #??? | | ??????????????# "" ""?#=! """" #??? | | ????????"????## ""R""?#=! """" #??? | | ????????????????? ?"""" #! """" #??? | | ?????????????????? ??# #??? | | ?????????????##???#????## ! #??? | | ??????????????????####### ######## #??? | | ?????????????#?# # #????### #??? | | ????????##?????# # #?#????# #??? | | ??????????????## # #?######+##?? | | ???????????#???# # #?# # | | ???????????????# # #?# """"""" # | +----------------------------------------------------+ Best States ------------- Heat Dissipation 101 Energy Generation 17 Energy Capacity 540 Matter Stores 300 Matter Capacity 450 Sight Range 16 Terrain Scan Range 20 Terrain Scan Density 10 ECM Strength 1 Armor Coverage 750 Resistance: EM 30 Weapon Cycling 15 Evasion (%) 50 Recoil Reduction 3 Matter Filtering 30 Kinecelleration 40 Offensive Hacking 20 Authchip Count 3 Item Schematics ----------------- Hcp. Storage Unit | -9/Materials | Hacked Cld. Plasma Rifle | -7/Factory | Hacked Linear Gravjet | -7/Factory | Hacked Robot Schematics ------------------ L-41 Fighter | -7/Factory | Hacked Fabricated ------------ Cld. Plasma Rifle | x1 | -7/Factory Alien Tech Used ----------------- None Achievements -------------- Gunslinger Challenges ------------ None Game ------ Seed LinkedDroneAutohacker Manual? 0 Play Time 01:14:49 Cumulative 189.5 hours Start 2021.12.13 @ 10:34:40 End 2021.12.13 @ 12:32:28 Sessions 3 Manual Loads 0 Difficulty Rogue Special Mode None Game No. 257 Rogue 257 Adventurer 0 Explorer 0 Win Type - Total 2 Types 2/0/0/0/0/0/0/0/0 Lore% 61 Gallery% 73 Achievement% 53 Wizard Run 0 Options --------- ASCII 0 Keyboard 1 Movement Vi Keybinds 0 Fullscreen 1 Font 18/SmallcapsGlow Map View 76x50 Tactical HUD 1 Map Filters NONE Filters NONE Steam 1 RUN: e97d3815-9f8e-4081-a84d-bc58d5b90037